fUST/lending_fUST_20240826
["ID","MTS","AMOUNT","RATE_DAILY","PERIOD"]
[336008546,1724664640937,-2967.743999,0.00013398,2]
[336008547,1724664640946,-194.069755,0.00013398,2]
[336008548,1724664640956,-194.069755,0.00013398,2]
[336008549,1724664640967,-150.112233,0.000134,2]
[336008550,1724664640977,-150.112233,0.000134,2]
[336008551,1724664640987,-150.112233,0.000134,2]
[336008552,1724664640997,-150.112233,0.000134,2]
[336008553,1724664641006,-150.112233,0.000134,2]
[336008554,1724664641015,-150.112233,0.000134,2]
[336008555,1724664641025,-33500.6720036,0.00013404,2]
[336008556,1724664641038,-4702.661148,0.00013404,2]
[336008557,1724664641047,-4702.661148,0.00013404,2]
[336008558,1724664641057,-2410.496246,0.00013411,2]
[336008559,1724664641067,-2410.496246,0.00013411,2]
[336008560,1724664641076,-3280.047028,0.00013411,2]
[336008561,1724664641085,-3280.047028,0.00013411,2]
[336008562,1724664641095,-1981.011656,0.00013411,2]
[336008563,1724664641103,-1981.011656,0.00013411,2]
[336008564,1724664641113,-392.884288,0.00013411,2]
[336008565,1724664641123,-392.884288,0.00013411,2]
[336008566,1724664641132,-336.191881,0.00013411,2]
[336008567,1724664641142,-336.191881,0.00013411,2]
[336008568,1724664641151,-1238.216861,0.00013411,2]
[336008569,1724664641160,-1238.216861,0.00013411,2]
[336008570,1724664641171,-151.0,0.00013411,2]
[336008571,1724664641180,-2967.743999,0.00013411,2]
[336008572,1724664641191,-151.0,0.00013411,2]
[336008573,1724664641201,-2967.743999,0.00013411,2]
[336008574,1724664641210,-2105.805556,0.00013411,2]
[336008575,1724664641219,-2105.805556,0.00013411,2]
[336008576,1724664641229,-194.069755,0.00013411,2]
[336008577,1724664641238,-194.069755,0.00013411,2]
[336008578,1724664641248,-2712.569172,0.00013414,2]
[336008580,1724664641258,-2712.569172,0.00013414,2]
[336008581,1724664641268,-3280.047028,0.00013414,2]
[336008582,1724664641278,-3280.047028,0.00013414,2]
[336008583,1724664641288,-1981.011656,0.00013414,2]
[336008584,1724664641297,-1981.011656,0.00013414,2]
[336008585,1724664641306,-336.191881,0.00013414,2]
[336008586,1724664641316,-336.191881,0.00013414,2]
[336008587,1724664641328,-1238.216861,0.00013414,2]
[336008588,1724664641339,-1238.216861,0.00013414,2]
[336008589,1724664641351,-151.0,0.00013414,2]
[336008590,1724664641361,-2967.743999,0.00013414,2]
[336008591,1724664641370,-151.0,0.00013414,2]
[336008592,1724664641380,-2967.743999,0.00013414,2]
[336008593,1724664641390,-2105.805556,0.00013414,2]
[336008594,1724664641399,-2105.805556,0.00013414,2]
[336008595,1724664641409,-4702.661148,0.00013414,2]
[336008596,1724664641419,-4702.661148,0.00013414,2]
[336008597,1724664641428,-4702.661148,0.00013414,2]
[336008598,1724664641440,-194.069755,0.00013414,2]
[336008599,1724664641450,-4702.661148,0.00013414,2]
[336008600,1724664641459,-67001.3440072,0.00013414,2]
[336008601,1724664641468,-2410.496246,0.00013415,2]
[336008602,1724664641477,-2410.496246,0.00013415,2]
[336008603,1724664641487,-3280.047028,0.00013415,2]
[336008604,1724664641496,-3280.047028,0.00013415,2]
[336008605,1724664641507,-1981.011656,0.00013415,2]
[336008606,1724664641522,-1981.011656,0.00013415,2]
[336008607,1724664641532,-392.884288,0.00013415,2]
[336008608,1724664641542,-392.884288,0.00013415,2]
[336008609,1724664641553,-336.191881,0.00013415,2]
[336008610,1724664641562,-336.191881,0.00013415,2]
[336008611,1724664641572,-1238.216861,0.00013415,2]
[336008612,1724664641581,-1238.216861,0.00013415,2]
[336008613,1724664641593,-151.0,0.00013415,2]
[336008614,1724664641602,-2967.743999,0.00013415,2]
[336008615,1724664641611,-151.0,0.00013415,2]
[336008616,1724664641621,-2967.743999,0.00013415,2]
[336008617,1724664641630,-2105.805556,0.00013415,2]
[336008618,1724664641639,-2105.805556,0.00013415,2]
[336008619,1724664641648,-194.069755,0.00013415,2]
[336008620,1724664641657,-3000.0,0.00013418,2]
[336008621,1724664641667,-19764.33538055,0.00013424,2]
[336008622,1724664641676,-4753.32962801,0.00013424,2]
[336008623,1724664641687,-151.0,0.00013424,2]
[336008624,1724664641697,-151.0,0.00013424,2]
[336008625,1724664641707,-639.175018,0.00013424,2]
[336008626,1724664641716,-639.175018,0.00013424,2]
[336008627,1724664641725,-1212.48574,0.00013424,2]
[336008628,1724664641734,-1212.48574,0.00013424,2]
[336008629,1724664641744,-422.318278,0.00013424,2]
[336008630,1724664641753,-422.318278,0.00013424,2]
[336008631,1724664641762,-2459.190757,0.00013424,2]
[336008632,1724664641772,-151.0,0.00013424,2]
[336008633,1724664641782,-2459.190757,0.00013424,2]
[336008634,1724664641791,-151.0,0.00013424,2]
[336008635,1724664641801,-1784.282116,0.00013424,2]
[336008636,1724664641811,-1784.282116,0.00013424,2]
[336008637,1724664641823,-3653.506313,0.00013424,2]
[336008638,1724664641833,-3653.506313,0.00013424,2]
[336008639,1724664641843,-151.0,0.00013424,2]
[336008640,1724664641853,-151.0,0.00013424,2]
[336008641,1724664641865,-1269.023864,0.00013424,2]
[336008642,1724664641875,-1269.023864,0.00013424,2]
[336008643,1724664641884,-2410.496246,0.00013424,2]
[336008644,1724664641894,-2410.496246,0.00013424,2]
[336008645,1724664641904,-2712.569172,0.00013424,2]
[336008646,1724664641914,-2712.569172,0.00013424,2]
[336008647,1724664641932,-2712.569172,0.00013424,2]
[336008648,1724664641948,-2712.569172,0.00013424,2]
[336008649,1724664641958,-3280.047028,0.00013424,2]
[336008650,1724664641969,-3280.047028,0.00013424,2]
[336008651,1724664641979,-1981.011656,0.00013424,2]
[336008652,1724664641989,-1981.011656,0.00013424,2]
[336008653,1724664641998,-392.884288,0.00013424,2]
[336008654,1724664642009,-392.884288,0.00013424,2]
[336008655,1724664642019,-1684.961839,0.00013424,2]
[336008656,1724664642028,-336.191881,0.00013424,2]
[336008657,1724664642038,-1684.961839,0.00013424,2]
[336008658,1724664642048,-336.191881,0.00013424,2]
[336008659,1724664642058,-1238.216861,0.00013424,2]
[336008660,1724664642068,-1238.216861,0.00013424,2]
[336008661,1724664642078,-151.0,0.00013424,2]
[336008663,1724664642089,-2967.743999,0.00013424,2]
[336008664,1724664642098,-2967.743999,0.00013424,2]
[336008665,1724664642108,-186.573841,0.00013424,2]
[336008666,1724664642118,-2967.743999,0.00013424,2]
[336008667,1724664642127,-2967.743999,0.00013424,2]
[336008668,1724664642137,-2105.805556,0.00013424,2]
[336008669,1724664642147,-2105.805556,0.00013424,2]
[336008670,1724664642158,-4702.661148,0.00013424,2]
[336008671,1724664642168,-4702.661148,0.00013424,2]
[336008672,1724664642178,-4702.661148,0.00013424,2]
[336008673,1724664642190,-194.069755,0.00013424,2]
[336008674,1724664642205,-4702.661148,0.00013424,2]
[336008675,1724664642214,-194.069755,0.00013424,2]
[336008676,1724664642224,-354.811328,0.00013425,2]
[336008677,1724664642234,-151.0,0.00013425,2]
[336008678,1724664642243,-236.426801,0.00013425,2]
[336008679,1724664642253,-151.0,0.00013425,2]
[336008680,1724664642262,-151.0,0.00013425,2]
[336008681,1724664642272,-285.982218,0.00013425,2]
[336008682,1724664642282,-151.0,0.00013425,2]
[336008683,1724664642292,-151.0,0.00013425,2]
[336008684,1724664642301,-151.0,0.00013425,2]
[336008685,1724664642311,-151.0,0.00013425,2]
[336008686,1724664642320,-151.0,0.00013425,2]
[336008687,1724664642330,-151.0,0.00013425,2]
[336008688,1724664642339,-639.175018,0.00013425,2]
[336008689,1724664642349,-639.175018,0.00013425,2]
[336008690,1724664642358,-151.0,0.00013425,2]
[336008691,1724664642368,-1212.48574,0.00013425,2]
[336008692,1724664642377,-1212.48574,0.00013425,2]
[336008693,1724664642387,-422.318278,0.00013425,2]
[336008694,1724664642618,-422.318278,0.00013425,2]
[336008695,1724664642628,-2459.190757,0.00013425,2]
[336008696,1724664642637,-151.0,0.00013425,2]
[336008698,1724664642646,-2459.190757,0.00013425,2]
[336008699,1724664642656,-151.0,0.00013425,2]
[336008700,1724664642665,-151.0,0.00013425,2]
[336008701,1724664642674,-151.0,0.00013425,2]
[336008702,1724664642684,-151.0,0.00013425,2]
[336008703,1724664642696,-151.0,0.00013425,2]
[336008704,1724664642705,-151.0,0.00013425,2]
[336008705,1724664642715,-151.0,0.00013425,2]
[336008706,1724664642724,-1784.282116,0.00013425,2]
[336008707,1724664642733,-1784.282116,0.00013425,2]
[336008708,1724664642742,-1784.282116,0.00013425,2]
[336008709,1724664642752,-1784.282116,0.00013425,2]
[336008710,1724664642761,-343.056509,0.00013425,2]
[336008711,1724664642771,-343.056509,0.00013425,2]
[336008712,1724664642780,-343.056509,0.00013425,2]
[336008713,1724664642789,-343.056509,0.00013425,2]
[336008714,1724664642798,-3653.506313,0.00013425,2]
[336008715,1724664642808,-3653.506313,0.00013425,2]
[336008716,1724664642818,-3653.506313,0.00013425,2]
[336008717,1724664642828,-3653.506313,0.00013425,2]
[336008718,1724664642837,-151.0,0.00013425,2]
[336008719,1724664642846,-151.0,0.00013425,2]
[336008720,1724664642856,-295.280626,0.00013425,2]
[336008721,1724664642866,-1269.023864,0.00013425,2]
[336008722,1724664642875,-1269.023864,0.00013425,2]
[336008723,1724664642884,-1269.023864,0.00013425,2]
[336008724,1724664642893,-1269.023864,0.00013425,2]
[336008725,1724664642902,-2410.496246,0.00013425,2]
[336008726,1724664642911,-2410.496246,0.00013425,2]
[336008727,1724664642921,-2410.496246,0.00013425,2]
[336008728,1724664642930,-2410.496246,0.00013425,2]
[336008729,1724664642943,-2712.569172,0.00013425,2]
[336008730,1724664642954,-2712.569172,0.00013425,2]
[336008731,1724664642965,-2712.569172,0.00013425,2]
[336008732,1724664642975,-2712.569172,0.00013425,2]
[336008733,1724664642984,-3280.047028,0.00013425,2]
[336008734,1724664642994,-3280.047028,0.00013425,2]
[336008735,1724664643004,-3280.047028,0.00013425,2]
[336008736,1724664643014,-3280.047028,0.00013425,2]
[336008737,1724664643023,-3280.047028,0.00013425,2]
[336008738,1724664643033,-3280.047028,0.00013425,2]
[336008739,1724664643042,-1981.011656,0.00013425,2]
[336008740,1724664643052,-1981.011656,0.00013425,2]
[336008742,1724664643063,-725.69076804,0.00013425,2]
[336008769,1724664646360,-528.76901252,0.00013373,2]
[336008770,1724664646373,-49.06363161,0.00013411,5]
[336008771,1724664646384,-265.95,0.00013411,5]
[336008811,1724665783524,503.67,0.00020421,120]
[336008817,1724665828604,50458.78974813,0.0001,30]
[336008876,1724665832608,-285.8609392,0.00011884,2]
[336008878,1724665832618,-678.40026988,0.00011989,2]
[336008880,1724665832628,-155.12257081,0.00011999,2]
[336008882,1724665832639,-393.03649247,0.00011999,2]
[336008884,1724665832650,-180.84262416,0.0001212,2]
[336008886,1724665832661,-269.46433649,0.00012163,2]
[336008888,1724665832671,-154.74467129,0.00012163,2]
[336008890,1724665832681,-1126.34199844,0.00012349,2]
[336008892,1724665832693,-259.50009799,0.00012349,2]
[336008985,1724665838569,-1601.56349143,0.00012349,2]
[336008986,1724665838926,-4075.96418381,0.00012349,2]
[336008987,1724665838937,-908.05890597,0.00012349,2]
[336008988,1724665838947,-300.0,0.00012355,2]
[336008989,1724665838956,-320.39550302,0.00012356,2]
[336008990,1724665838966,-780.60811079,0.00012689,2]
[336008991,1724665838976,-578.77463145,0.00012782,2]
[336008992,1724665838988,-443.88723063,0.00012782,2]
[336008993,1724665839001,-153.0,0.000128,2]
[336008994,1724665839011,-153.0,0.000128,2]
[336008995,1724665839020,-68.86785691,0.00012934,2]
[336008996,1724665839038,-154.51413833,0.00012934,2]
[336008997,1724665839048,-154.76012181,0.00012985,2]
[336008998,1724665839058,-898.34782203,0.00012985,2]
[336008999,1724665839067,-493.69395889,0.00012989,2]
[336009000,1724665839079,-155.34567641,0.00012991,2]
[336009001,1724665839088,-154.74467129,0.00012991,2]
[336009002,1724665839097,-863.13231421,0.00013,2]
[336009003,1724665839107,-500.0,0.00013,2]
[336009004,1724665839117,-337.0669405,0.00013,2]
[336009005,1724665839128,-1000.0,0.00013,13]
[336009006,1724665839139,-7288.14352117,0.00013176,2]
[336009040,1724665840751,-330.42205415,0.00013051,2]
[336009041,1724665840761,-79.71652981,0.00013176,2]
[336009042,1724665840770,-150.112233,0.000132,2]
[336009043,1724665840780,-150.112233,0.000132,2]
[336009044,1724665840790,-150.374,0.00013254,2]
[336009045,1724665840799,-522.0,0.00013254,2]
[336009046,1724665840809,-1416.0,0.00013254,2]
[336009047,1724665840818,-210.0,0.00013273,2]
[336009048,1724665840827,-500.0,0.00013273,2]
[336009050,1724665840839,-500.0,0.00013273,2]
[336009052,1724665840849,-2099.86295004,0.00013275,2]
[336009054,1724665840862,-22417.80205852,0.00013275,2]
[336009056,1724665840872,-30447.7488467,0.00013276,2]
[336009058,1724665840881,-88888.0,0.00013286,2]
[336009060,1724665840891,-500.0,0.00013286,2]
[336009062,1724665840900,-150.112233,0.000133,2]
[336009064,1724665840910,-150.112233,0.000133,2]
[336009067,1724665840920,-150.112233,0.000133,2]
[336009069,1724665840929,-150.112233,0.000133,2]
[336009071,1724665840938,-150.112233,0.000133,2]
[336009073,1724665840948,-150.112233,0.000133,2]
[336009074,1724665840958,-150.112233,0.000133,2]
[336009075,1724665840967,-150.112233,0.000133,2]
[336009076,1724665840976,-150.112233,0.000133,2]
[336009077,1724665840986,-150.112233,0.000133,2]
[336009078,1724665841000,-150.112233,0.000133,2]
[336009079,1724665841009,-150.112233,0.000133,2]
[336009080,1724665841018,-150.112233,0.000133,2]
[336009081,1724665841029,-150.112233,0.000133,2]
[336009082,1724665841038,-151.0,0.00013325,2]
[336009083,1724665841048,-151.0,0.00013325,2]
[336009084,1724665841057,-197.121202,0.00013325,2]
[336009085,1724665841067,-197.121202,0.00013325,2]
[336009086,1724665841080,-541.687518,0.00013325,2]
[336009087,1724665841089,-541.687518,0.00013325,2]
[336009088,1724665841098,-4834.11956883,0.00013325,2]
[336009089,1724665841108,-30447.7488467,0.00013325,2]
[336009090,1724665841117,-151.0,0.00013335,2]
[336009091,1724665841127,-151.0,0.00013335,2]
[336009092,1724665841137,-2315.501235,0.00013335,2]
[336009093,1724665841146,-2315.501235,0.00013335,2]
[336009094,1724665841155,-197.121202,0.00013335,2]
[336009095,1724665841165,-197.121202,0.00013335,2]
[336009096,1724665841175,-541.687518,0.00013335,2]
[336009097,1724665841184,-541.687518,0.00013335,2]
[336009098,1724665841194,-20000.0,0.00013335,2]
[336009099,1724665841203,-500.0,0.00013337,2]
[336009100,1724665841214,-3000.0,0.00013338,2]
[336009101,1724665841223,-151.0,0.00013345,2]
[336009102,1724665841233,-151.0,0.00013345,2]
[336009103,1724665841243,-151.0,0.00013355,2]
[336009104,1724665841252,-151.0,0.00013355,2]
[336009105,1724665841262,-2315.501235,0.00013355,2]
[336009106,1724665841271,-2315.501235,0.00013355,2]
[336009107,1724665841281,-197.121202,0.00013355,2]
[336009108,1724665841290,-197.121202,0.00013355,2]
[336009109,1724665841300,-541.687518,0.00013355,2]
[336009110,1724665841310,-541.687518,0.00013355,2]
[336009111,1724665841319,-500.21206834,0.00013373,2]
[336009112,1724665841329,-312.06841519,0.00013373,2]
[336009113,1724665841338,-500.0,0.00013373,2]
[336009114,1724665841347,-500.0,0.00013373,2]
[336009115,1724665841357,-500.0,0.00013373,2]
[336009116,1724665841367,-154.74467129,0.00013373,2]
[336009117,1724665841378,-30447.7488467,0.00013384,2]
[336009118,1724665841387,-121790.995387,0.00013386,2]
[336009119,1724665841397,-1194.645464,0.00013394,2]
[336009120,1724665841407,-1194.645464,0.00013394,2]
[336009121,1724665841416,-151.0,0.00013394,2]
[336009122,1724665841426,-151.0,0.00013394,2]
[336009123,1724665841435,-5575.389502,0.00013394,2]
[336009124,1724665841447,-5575.389502,0.00013394,2]
[336009125,1724665841458,-4362.755286,0.00013394,2]
[336009126,1724665841468,-4362.755286,0.00013394,2]
[336009127,1724665841479,-1363.48231,0.00013394,2]
[336009128,1724665841488,-4551.840269,0.00013394,2]
[336009129,1724665841499,-1363.48231,0.00013394,2]
[336009130,1724665841508,-4551.840269,0.00013394,2]
[336009131,1724665841518,-2122.049147,0.00013394,2]
[336009132,1724665841527,-2122.049147,0.00013394,2]
[336009133,1724665841537,-463.663645,0.00013394,2]
[336009134,1724665841546,-463.663645,0.00013394,2]
[336009135,1724665841555,-30447.7488467,0.00013394,2]
[336009136,1724665841565,-112232.83778334,0.00013396,2]
[336009154,1724665843574,-309.4584508,0.00012163,2]
[336009155,1724665843585,-154.74467129,0.00012971,2]
[336009156,1724665843595,-187.873,0.00013254,2]
[336009157,1724665843605,-500.0,0.00013373,2]
[336009158,1724665843615,-500.0,0.00013373,2]
[336009159,1724665843626,-415.1356561,0.00013396,2]
[336009160,1724665843635,-1194.645464,0.00013396,2]
[336009161,1724665843645,-1194.645464,0.00013396,2]
[336009167,1724665843893,-151.0,0.00013396,2]
[336009168,1724665843903,-151.0,0.00013396,2]
[336009169,1724665843914,-4123.54055896,0.00013396,2]
[336009170,1724665843926,-1451.84894304,0.00013396,2]
[336009171,1724665843936,-5575.389502,0.00013396,2]
[336009172,1724665843945,-4362.755286,0.00013396,2]
[336009173,1724665843955,-4362.755286,0.00013396,2]
[336009174,1724665843965,-1363.48231,0.00013396,2]
[336009175,1724665843975,-4551.840269,0.00013396,2]
[336009176,1724665843985,-1363.48231,0.00013396,2]
[336009177,1724665843999,-4551.840269,0.00013396,2]
[336009178,1724665844008,-2122.049147,0.00013396,2]
[336009179,1724665844018,-2122.049147,0.00013396,2]
[336009180,1724665844028,-151.0,0.00013396,2]
[336009181,1724665844039,-463.663645,0.00013396,2]
[336009182,1724665844048,-151.0,0.00013396,2]
[336009183,1724665844058,-463.663645,0.00013396,2]
[336009184,1724665844068,-3087.008242,0.00013396,2]
[336009185,1724665844079,-151.0,0.00013396,2]
[336009186,1724665844089,-3087.008242,0.00013396,2]
[336009187,1724665844098,-151.0,0.00013396,2]
[336009188,1724665844108,-155.086822,0.00013396,2]
[336009189,1724665844118,-2726.791713,0.00013396,2]
[336009190,1724665844127,-1962.233129,0.00013396,2]
[336009191,1724665844137,-1962.233129,0.00013396,2]
[336009192,1724665844146,-2726.791713,0.00013396,2]
[336009193,1724665844156,-1770.406172,0.00013396,2]
[336009194,1724665844166,-1770.406172,0.00013396,2]
[336009195,1724665844175,-151.0,0.00013396,2]
[336009196,1724665844185,-3095.377972,0.00013396,2]
[336009197,1724665844195,-3095.377972,0.00013396,2]
[336009198,1724665844205,-151.0,0.00013396,2]
[336009199,1724665844215,-5425.544336,0.00013396,2]
[336009200,1724665844226,-5425.544336,0.00013396,2]
[336009201,1724665844235,-416.56084226,0.00013396,2]
[336009202,1724665844267,-9.38368387,0.00013396,2]
[336009212,1724665846475,-1469.28047387,0.00013396,2]
[336009213,1724665846485,-1895.225,0.00013396,2]
[336009214,1724665846494,-1337.046321,0.00013396,2]
[336009215,1724665846504,-1337.046321,0.00013396,2]
[336009216,1724665846514,-151.0,0.00013396,2]
[336009217,1724665846523,-302.572693,0.00013396,2]
[336009218,1724665846532,-151.0,0.00013396,2]
[336009219,1724665846542,-302.572693,0.00013396,2]
[336009221,1724665846552,-151.0,0.00013396,2]
[336009223,1724665846562,-151.0,0.00013396,2]
[336009224,1724665846572,-189.8898,0.00013396,2]
[336009225,1724665846582,-189.8898,0.00013396,2]
[336009226,1724665846591,-151.0,0.00013396,2]
[336009227,1724665846600,-151.0,0.00013396,2]
[336009228,1724665846610,-2808.025524,0.00013396,2]
[336009229,1724665846620,-230.238821,0.00013396,2]
[336009230,1724665846630,-2808.025524,0.00013396,2]
[336009231,1724665846640,-2293.492266,0.00013396,2]
[336009232,1724665846649,-2169.446621,0.00013396,2]
[336009233,1724665846659,-2169.446621,0.00013396,2]
[336009234,1724665846669,-2293.492266,0.00013396,2]
[336009235,1724665846679,-2169.446621,0.00013396,2]
[336009236,1724665846689,-2169.446621,0.00013396,2]
[336009237,1724665846698,-151.0,0.00013396,2]
[336009238,1724665846707,-151.0,0.00013396,2]
[336009239,1724665846717,-791.866639,0.00013396,2]
[336009240,1724665846728,-791.866639,0.00013396,2]
[336009241,1724665846738,-151.0,0.00013396,2]
[336009242,1724665846750,-151.0,0.00013396,2]
[336009243,1724665846760,-151.0,0.00013396,2]
[336009244,1724665846769,-154.340883,0.00013396,2]
[336009245,1724665846778,-197.121202,0.00013398,2]
[336009246,1724665846788,-197.121202,0.00013398,2]
[336009247,1724665846797,-541.687518,0.00013398,2]
[336009248,1724665846807,-541.687518,0.00013398,2]
[336009249,1724665846816,-150.112233,0.000134,2]
[336009250,1724665846826,-150.112233,0.000134,2]
[336009251,1724665846836,-150.112233,0.000134,2]
[336009252,1724665846846,-150.112233,0.000134,2]
[336009253,1724665846855,-150.112233,0.000134,2]
[336009254,1724665846865,-150.112233,0.000134,2]
[336009255,1724665846874,-150.112233,0.000134,2]
[336009256,1724665846884,-150.112233,0.000134,2]
[336009257,1724665846893,-150.112233,0.000134,2]
[336009258,1724665846902,-151.0,0.000134,2]
[336009259,1724665846911,-931.85046988,0.000134,3]
[336009260,1724665846921,-150.112233,0.000134,2]
[336009261,1724665846930,-150.112233,0.000134,2]
[336009262,1724665846940,-150.112233,0.000134,2]
[336009263,1724665846949,-150.112233,0.000134,2]
[336009264,1724665846959,-150.112233,0.000134,2]
[336009265,1724665846969,-151.0,0.00013404,2]
[336009266,1724665846982,-203.963715,0.00013404,2]
[336009267,1724665846993,-1962.233129,0.00013404,2]
[336009268,1724665847003,-1962.233129,0.00013404,2]
[336009269,1724665847013,-151.0,0.00013404,2]
[336009270,1724665847022,-3095.377972,0.00013404,2]
[336009271,1724665847032,-3095.377972,0.00013404,2]
[336009272,1724665847043,-5425.544336,0.00013404,2]
[336009273,1724665847052,-5425.544336,0.00013404,2]
[336009274,1724665847062,-1337.046321,0.00013404,2]
[336009275,1724665847073,-1337.046321,0.00013404,2]
[336009276,1724665847083,-151.0,0.00013404,2]
[336009277,1724665847093,-302.572693,0.00013404,2]
[336009278,1724665847102,-151.0,0.00013404,2]
[336009279,1724665847112,-302.572693,0.00013404,2]
[336009280,1724665847122,-151.0,0.00013404,2]
[336009281,1724665847131,-151.0,0.00013404,2]
[336009282,1724665847141,-189.8898,0.00013404,2]
[336009283,1724665847152,-189.8898,0.00013404,2]
[336009284,1724665847162,-151.0,0.00013404,2]
[336009285,1724665847182,-2293.492266,0.00013404,2]
[336009286,1724665847192,-2169.446621,0.00013404,2]
[336009287,1724665847201,-2293.492266,0.00013404,2]
[336009288,1724665847211,-2169.446621,0.00013404,2]
[336009289,1724665847221,-151.0,0.00013404,2]
[336009290,1724665847231,-151.0,0.00013404,2]
[336009291,1724665847241,-2315.501235,0.00013411,2]
[336009292,1724665847250,-2315.501235,0.00013411,2]
[336009293,1724665847260,-197.121202,0.00013411,2]
[336009294,1724665847271,-197.121202,0.00013411,2]
[336009295,1724665847281,-541.687518,0.00013411,2]
[336009296,1724665847291,-541.687518,0.00013411,2]
[336009297,1724665847303,-151.0,0.00013411,2]
[336009298,1724665847313,-151.0,0.00013411,2]
[336009299,1724665847323,-3087.008242,0.00013411,2]
[336009300,1724665847333,-151.0,0.00013411,2]
[336009301,1724665847343,-3087.008242,0.00013411,2]
[336009302,1724665847353,-151.0,0.00013411,2]
[336009303,1724665847363,-2726.791713,0.00013411,2]
[336009304,1724665847373,-2726.791713,0.00013411,2]
[336009305,1724665847382,-1770.406172,0.00013411,2]
[336009306,1724665847392,-1770.406172,0.00013411,2]
[336009307,1724665847402,-151.0,0.00013411,2]
[336009308,1724665847411,-1895.225,0.00013411,2]
[336009309,1724665847421,-1895.225,0.00013411,2]
[336009310,1724665847431,-2808.025524,0.00013411,2]
[336009311,1724665847440,-2808.025524,0.00013411,2]
[336009312,1724665847449,-791.866639,0.00013411,2]
[336009313,1724665847459,-791.866639,0.00013411,2]
[336009314,1724665847468,-194.069755,0.00013414,2]
[336009315,1724665847478,-151.0,0.00013414,2]
[336009316,1724665847488,-151.0,0.00013414,2]
[336009317,1724665847498,-2315.501235,0.00013414,2]
[336009318,1724665847508,-2315.501235,0.00013414,2]
[336009319,1724665847519,-197.121202,0.00013414,2]
[336009320,1724665847531,-197.121202,0.00013414,2]
[336009321,1724665847541,-541.687518,0.00013414,2]
[336009322,1724665847551,-541.687518,0.00013414,2]
[336009323,1724665847561,-151.0,0.00013414,2]
[336009324,1724665847572,-163.412381,0.00013414,2]
[336009325,1724665847583,-362.702659,0.00013414,2]
[336009326,1724665847593,-163.412381,0.00013414,2]
[336009327,1724665847603,-362.702659,0.00013414,2]
[336009328,1724665847614,-409.510685,0.00013414,2]
[336009329,1724665847624,-409.510685,0.00013414,2]
[336009330,1724665847636,-151.0,0.00013414,2]
[336009331,1724665847646,-1194.645464,0.00013414,2]
[336009332,1724665847657,-1194.645464,0.00013414,2]
[336009333,1724665847668,-151.0,0.00013414,2]
[336009334,1724665847678,-1027.035089,0.00013414,2]
[336009335,1724665847689,-151.0,0.00013414,2]
[336009336,1724665847698,-151.0,0.00013414,2]
[336009337,1724665847708,-1027.035089,0.00013414,2]
[336009338,1724665847718,-5575.389502,0.00013414,2]
[336009339,1724665847728,-5575.389502,0.00013414,2]
[336009340,1724665847738,-4362.755286,0.00013414,2]
[336009341,1724665847747,-4362.755286,0.00013414,2]
[336009342,1724665847756,-1363.48231,0.00013414,2]
[336009343,1724665847766,-1363.48231,0.00013414,2]
[336009344,1724665847780,-4551.840269,0.00013414,2]
[336009345,1724665847789,-2122.049147,0.00013414,2]
[336009346,1724665847799,-2122.049147,0.00013414,2]
[336009347,1724665847808,-463.663645,0.00013414,2]
[336009348,1724665847818,-463.663645,0.00013414,2]
[336009349,1724665847828,-1962.233129,0.00013414,2]
[336009350,1724665847837,-1962.233129,0.00013414,2]
[336009351,1724665847847,-151.0,0.00013414,2]
[336009352,1724665847857,-3095.377972,0.00013414,2]
[336009353,1724665847867,-3095.377972,0.00013414,2]
[336009354,1724665847877,-5425.544336,0.00013414,2]
[336009355,1724665847887,-5425.544336,0.00013414,2]
[336009356,1724665847897,-1337.046321,0.00013414,2]